[Event "72nd RUS-ch Higher League 2019"]
[Site "Yaroslavl"]
[Date "2019.06.30"]
[Round "4.24"]
[White "Ibadov, Dashgyn"]
[Black "Khanin, Semen"]
[Result "0-1"]
[ECO "B34"]
[WhiteElo "2298"]
[BlackElo "2529"]
[Annotator "ChessBase"]
[PlyCount "62"]
[EventDate "2019.06.27"]
[EventType "swiss"]
[EventCountry "RUS"]
[SourceTitle "playchess.com"]
[Source "ChessBase"]
[SourceQuality "1"]
[TimeControl "40/5400+30:1800+30"]

1. e4 {[%emt 0:00:00]} c5 {[%emt 0:00:00]} 2. Nf3 {[%emt 0:00:00]} Nc6 {[%emt 0:00:00]} 3. d4 {[%emt 0:00:00]} cxd4 {[%emt 0:00:00]} 4. Nxd4 {[%emt 0:00:00]} g6 {[%emt 0:00:00]} 5. Nc3 {[%emt 0:00:25]} Bg7 {[%emt 0:00:00]} 6. Be3 {[%emt 0:01:14]} Nf6 {[%emt 0:00:01]} 7. Nxc6 {[%emt 0:00:10]} bxc6 {[%emt 0:00:04]} 8. e5 {[%emt 0:00:06]} Ng8 {[%emt 0:00:05]} 9. Bd4 {[%emt 0:01:11]} Qa5 {[%emt 0:00:06]} 10. Bc4 {[%emt 0:03:54]} Bxe5 {[%emt 0:00:56]} 11. O-O {[%emt 0:01:23]} f6 {[%emt 0:00:16]} 12. Re1 {[%emt 0:08:34]} Nh6 {[%emt 0:05:49]} 13. Bxe5 {[%emt 0:06:26]} fxe5 {[%emt 0:00:05]} 14. Qd2 {[%emt 0:00:15]} Ng4 {[%emt 0:20:35]} 15. Qg5 {[%emt 0:15:30]} d6 {[%emt 0:03:09]} 16. Ne4 {[%emt 0:04:42]} Rf8 {[%emt 0:04:37]} 17. Rad1 {[%emt 0:14:08]} Bf5 {[%emt 0:13:08]} 18. Bb3 {[%emt 0:14:36]} Qb6 {[%emt 0:05:20]} 19. Rd2 {[%emt 0:00:20]} Bxe4 {[%emt 0:16:10]} 20. Qxg4 {[%emt 0:00:14]} Bf5 {[%emt 0:00:05]} 21. Qh4 {[%emt 0:01:34]} h5 {[%emt 0:00:22]} 22. Re3 {[%emt 0:07:13]} Rf6 {[%emt 0:01:11]} 23. h3 {[%emt 0:01:56]} a5 {[%emt 0:04:31]} 24. Ba4 {[%emt 0:03:57]} Bd7 {[%emt 0:00:17]} 25. Rb3 {[%emt 0:01:33]} Qc5 {[%emt 0:00:14]} 26. Qe4 {[%emt 0:00:37]} Kf7 {[%emt 0:07:27]} 27. Rb7 {[%emt 0:01:30]} Rf4 {[%emt 0:01:06]} 28. Qe2 {[%emt 0:02:40]} Bc8 {[%emt 0:01:53]} 29. Bb3+ {[%emt 0:01:25]} Ke8 {[%emt 0:00:47]} 30. g3 {[%emt 0:03:52]} Rf6 {[%emt 0:00:31]} 31. Rc7 {[%emt 0:00:53]} Qb6 {[%emt 0:04:03]} 0-1

[Event "72nd RUS-ch Higher League 2019"]
[Site "Yaroslavl"]
[Date "2019.06.30"]
[Round "4.25"]
[White "Samojlov, Anton"]
[Black "Mirzaev, Aziz"]
[Result "1-0"]
[ECO "B90"]
[WhiteElo "2350"]
[BlackElo "2433"]
[Annotator "NA"]
[PlyCount "53"]
[EventDate "2019.06.27"]
[EventType "swiss"]
[EventCountry "RUS"]
[SourceTitle "playchess.com"]
[Source "ChessBase"]
[SourceQuality "1"]
[TimeControl "40/5400+30:1800+30"]

1. e4 {[%emt 0:00:00]} c5 {[%emt 0:00:00]} 2. Nc3 {[%emt 0:00:00]} d6 {[%emt 0:00:42]} 3. Nf3 {[%emt 0:00:13]} a6 {[%emt 0:01:58]} 4. d4 {[%emt 0:00:15]} cxd4 {[%emt 0:00:12]} 5. Nxd4 {[%emt 0:00:03]} Nf6 {[%emt 0:00:13]} 6. Qf3 {[%emt 0:00:18]} Nbd7 {[%emt 0:05:45]} 7. Be3 {[%emt 0:05:40]} Qc7 {[%emt 0:09:31]} 8. O-O-O {[%emt 0:03:18]} e6 {[%emt 0:02:46]} 9. Qg3 {[%emt 0:21:19]} b5 {[%emt 0:04:53]} 10. a3 {[%emt 0:03:24]} Bb7 {[%emt 0:07:08]} 11. f3 {[%emt 0:00:42]} Rc8 {[%emt 0:00:51]} 12. Bxb5 {[%emt 0:06:03]} axb5 {[%emt 0:05:21]} 13. Ndxb5 {[%emt 0:00:06]} Qa5 {[%emt 0:08:57]} 14. Rd4 {[%emt 0:36:38]} e5 {[%emt 0:17:28]} 15. Ra4 {[%emt 0:00:21]} Qd8 {[%emt 0:00:06]} 16. Ra7 {[%emt 0:01:46]} Rb8 {[%emt 0:03:37]} 17. Rd1 {[%emt 0:02:40]} Nb6 {[%emt 0:03:28]} 18. f4 {[%emt 0:08:43]} exf4 {[%emt 0:16:06]} 19. Qxf4 {[%emt 0:02:16]} Nc4 {[%emt 0:01:20]} 20. Bc5 {[%emt 0:01:24]} g5 {[%emt 0:05:08]} 21. Qf1 {[%emt 0:00:27]} d5 {[%emt 0:01:41]} 22. Nxd5 {[%emt 0:02:33]} Nxd5 {[%emt 0:02:01]} 23. Qxc4 {[%emt 0:01:24]} Qc8 {[%emt 0:01:42]} 24. Rxd5 {[%emt 0:00:45]} Bxd5 {[%emt 0:00:34]} 25. Qxd5 {[%emt 0:00:10]} Rxb5 {[%emt 0:00:20]} 26. Qxf7+ {[%emt 0:00:28]} Kd8 {[%emt 0:00:01]} 27. Be7+ {[%emt 0:00:49]} 1-0

[Event "72nd RUS-ch Higher League 2019"]
[Site "Yaroslavl"]
[Date "2019.06.30"]
[Round "4.26"]
[White "Kardashevskiy, Evgeny"]
[Black "Sadovsky, Artem"]
[Result "1-0"]
[ECO "D17"]
[WhiteElo "2429"]
[BlackElo "2416"]
[Annotator "NA"]
[PlyCount "93"]
[EventDate "2019.06.27"]
[EventType "swiss"]
[EventCountry "RUS"]
[SourceTitle "playchess.com"]
[Source "ChessBase"]
[SourceQuality "1"]
[TimeControl "40/5400+30:1800+30"]

1. d4 {[%emt 0:00:00]} d5 {[%emt 0:01:47]} 2. Nf3 {[%emt 0:00:00]} Nf6 {[%emt 0:00:22]} 3. c4 {[%emt 0:00:06]} c6 {[%emt 0:00:22]} 4. Nc3 {[%emt 0:00:22]} dxc4 {[%emt 0:00:29]} 5. a4 {[%emt 0:00:17]} Bf5 {[%emt 0:00:18]} 6. Ne5 {[%emt 0:00:49]} e6 {[%emt 0:06:54]} 7. f3 {[%emt 0:00:31]} Bb4 {[%emt 0:06:33]} 8. e4 {[%emt 0:00:31]} Nxe4 {[%emt 0:16:56]} 9. fxe4 {[%emt 0:03:01]} Qh4+ {[%emt 0:00:06]} 10. Ke2 {[%emt 0:03:12]} Bxc3 {[%emt 0:01:55]} 11. bxc3 {[%emt 0:02:45]} Nd7 {[%emt 0:06:03]} 12. Nf3 {[%emt 0:16:20]} Qxe4+ {[%emt 0:00:13]} 13. Kf2 {[%emt 0:01:02]} Qd5 {[%emt 0:09:44]} 14. Nd2 {[%emt 0:03:44]} Ne5 {[%emt 0:06:15]} 15. Qe1 {[%emt 0:06:38]} Nd3+ {[%emt 0:01:14]} 16. Bxd3 {[%emt 0:00:08]} Bxd3 {[%emt 0:03:44]} 17. Qe5 {[%emt 0:04:43]} f6 {[%emt 0:04:31]} 18. Qg3 {[%emt 0:02:13]} O-O {[%emt 0:04:02]} 19. Ba3 {[%emt 0:01:01]} Rf7 {[%emt 0:00:17]} 20. Rhe1 {[%emt 0:01:22]} e5 {[%emt 0:06:46]} 21. dxe5 {[%emt 0:02:59]} fxe5+ {[%emt 0:00:17]} 22. Kg1 {[%emt 0:00:53]} e4 {[%emt 0:00:24]} 23. Qe3 {[%emt 0:00:56]} Re8 {[%emt 0:10:56]} 24. Qxa7 {[%emt 0:10:29]} b5 {[%emt 0:00:20]} 25. Qe3 {[%emt 0:04:32]} bxa4 {[%emt 0:00:32]} 26. Bb4 {[%emt 0:01:25]} Rd7 {[%emt 0:05:28]} 27. Ra2 {[%emt 0:05:14]} Re5 {[%emt 0:01:39]} 28. Rxa4 {[%emt 0:00:59]} c5 {[%emt 0:00:19]} 29. Ra5 {[%emt 0:00:32]} Rc7 {[%emt 0:01:02]} 30. Ba3 {[%emt 0:03:02]} h6 {[%emt 0:00:13]} 31. Nf1 {[%emt 0:03:11]} Bc2 {[%emt 0:03:25]} 32. Qd2 {[%emt 0:02:08]} Bd3 {[%emt 0:00:59]} 33. Ne3 {[%emt 0:00:14]} Qe6 {[%emt 0:01:06]} 34. h3 {[%emt 0:04:13]} Rg5 {[%emt 0:00:19]} 35. Ng4 {[%emt 0:00:39]} Kh7 {[%emt 0:00:50]} 36. Bc1 {[%emt 0:01:37]} Rf7 {[%emt 0:00:58]} 37. Qe3 {[%emt 0:01:49]} Rgf5 {[%emt 0:00:01]} 38. Rxc5 {[%emt 0:02:25]} Rf1+ {[%emt 0:00:13]} 39. Rxf1 {[%emt 0:00:20]} Rxf1+ {[%emt 0:00:05]} 40. Kh2 {[%emt 0:00:00]} Qd6+ {[%emt 0:00:00]} 41. Re5 {[%emt 0:02:13]} h5 {[%emt 0:22:48]} 42. Qg3 {[%emt 0:01:56]} Qg6 {[%emt 0:01:24]} 43. Rg5 {[%emt 0:01:01]} Qf7 {[%emt 0:04:16]} 44. Ne5 {[%emt 0:00:30]} Qf6 {[%emt 0:00:59]} 45. Rxh5+ {[%emt 0:00:48]} Kg8 {[%emt 0:00:05]} 46. Be3 {[%emt 0:01:05]} Rb1 {[%emt 0:00:47]} 47. Qg4 {[%emt 0:00:26]} 1-0

[Event "72nd RUS-ch Higher League 2019"]
[Site "Yaroslavl"]
[Date "2019.06.30"]
[Round "4.27"]
[White "Nesterov, Arseniy"]
[Black "Truskavetsky, Alexandr"]
[Result "0-1"]
[ECO "A05"]
[WhiteElo "2423"]
[BlackElo "2398"]
[Annotator "NA"]
[PlyCount "146"]
[EventDate "2019.06.27"]
[EventType "swiss"]
[EventCountry "RUS"]
[SourceTitle "playchess.com"]
[Source "ChessBase"]
[SourceQuality "1"]
[TimeControl "40/5400+30:1800+30"]

1. Nf3 {[%emt 0:00:00]} Nf6 {[%emt 0:03:05]} 2. c4 {[%emt 0:00:00]} c5 {[%emt 0:03:06]} 3. Nc3 {[%emt 0:00:14]} g6 {[%emt 0:00:41]} 4. g3 {[%emt 0:00:09]} Bg7 {[%emt 0:00:07]} 5. Bg2 {[%emt 0:00:04]} O-O {[%emt 0:00:08]} 6. d4 {[%emt 0:01:21]} cxd4 {[%emt 0:00:29]} 7. Nxd4 {[%emt 0:00:05]} Nc6 {[%emt 0:00:11]} 8. O-O {[%emt 0:00:52]} d6 {[%emt 0:00:19]} 9. Nxc6 {[%emt 0:04:09]} bxc6 {[%emt 0:04:17]} 10. Bxc6 {[%emt 0:00:11]} Rb8 {[%emt 0:00:03]} 11. Bg2 {[%emt 0:04:15]} Qa5 {[%emt 0:31:00]} 12. Nb5 {[%emt 0:13:15]} Bb7 {[%emt 0:04:51]} 13. Bxb7 {[%emt 0:04:31]} Rxb7 {[%emt 0:00:01]} 14. Bd2 {[%emt 0:03:51]} Qa6 {[%emt 0:05:22]} 15. Bc3 {[%emt 0:04:42]} Rc8 {[%emt 0:00:19]} 16. b3 {[%emt 0:13:02]} d5 {[%emt 0:07:10]} 17. a4 {[%emt 0:05:29]} dxc4 {[%emt 0:00:47]} 18. Rc1 {[%emt 0:01:32]} Rd7 {[%emt 0:04:05]} 19. Qc2 {[%emt 0:02:45]} Qe6 {[%emt 0:01:32]} 20. Bxf6 {[%emt 0:09:28]} Bxf6 {[%emt 0:04:55]} 21. bxc4 {[%emt 0:00:37]} a6 {[%emt 0:02:54]} 22. Na3 {[%emt 0:00:04]} Rc5 {[%emt 0:02:12]} 23. Rfd1 {[%emt 0:06:53]} Rdc7 {[%emt 0:01:03]} 24. Rb1 {[%emt 0:08:37]} h5 {[%emt 0:03:26]} 25. Rd3 {[%emt 0:05:52]} h4 {[%emt 0:00:51]} 26. Rb8+ {[%emt 0:01:04]} Kh7 {[%emt 0:02:29]} 27. Qd2 {[%emt 0:02:17]} hxg3 {[%emt 0:03:12]} 28. Rxg3 {[%emt 0:00:35]} Be5 {[%emt 0:01:55]} 29. Rd3 {[%emt 0:02:31]} Rc8 {[%emt 0:09:17]} 30. Rxc8 {[%emt 0:00:14]} Rxc8 {[%emt 0:00:16]} 31. Qe3 {[%emt 0:02:55]} Kg7 {[%emt 0:01:18]} 32. c5 {[%emt 0:01:58]} Qg4+ {[%emt 0:00:37]} 33. Kh1 {[%emt 0:00:20]} Bf6 {[%emt 0:01:29]} 34. f4 {[%emt 0:01:23]} Qf5 {[%emt 0:01:35]} 35. Nc4 {[%emt 0:01:21]} Rxc5 {[%emt 0:01:22]} 36. Ne5 {[%emt 0:00:25]} Rc2 {[%emt 0:01:01]} 37. Rd5 {[%emt 0:00:29]} Ra2 {[%emt 0:00:25]} 38. a5 Qb1+ {[%emt 0:00:33]} 39. Kg2 {[%emt 0:00:44]} Qb7 {[%emt 0:00:25]} 40. Qf3 {[%emt 0:00:00]} Rxe2+ {[%emt 0:00:00]} 41. Kg3 {[%emt 0:08:33]} Ra2 {[%emt 0:08:27]} 42. Ng4 {[%emt 0:04:06]} Qb2 {[%emt 0:00:58]} 43. Rd3 {[%emt 0:04:24]} Rxa5 {[%emt 0:01:48]} 44. Rb3 {[%emt 0:00:41]} Qd4 {[%emt 0:02:18]} 45. Qe3 {[%emt 0:00:41]} Qxe3+ {[%emt 0:01:07]} 46. Nxe3 {[%emt 0:00:02]} Rc5 {[%emt 0:01:23]} 47. Kf3 {[%emt 0:00:10]} a5 {[%emt 0:00:29]} 48. Ke4 {[%emt 0:00:10]} e6 {[%emt 0:00:43]} 49. Rb7 {[%emt 0:00:42]} Rh5 {[%emt 0:01:12]} 50. Nc4 {[%emt 0:00:21]} Rd5 {[%emt 0:01:05]} 51. Ke3 {[%emt 0:00:33]} a4 {[%emt 0:02:48]} 52. Rb4 {[%emt 0:00:15]} a3 {[%emt 0:07:28]} 53. Nxa3 {[%emt 0:01:44]} Be7 {[%emt 0:00:52]} 54. Ra4 {[%emt 0:00:10]} Bc5+ {[%emt 0:02:33]} 55. Ke2 {[%emt 0:00:25]} Rh5 {[%emt 0:00:12]} 56. Nc4 {[%emt 0:01:32]} Rxh2+ {[%emt 0:00:06]} 57. Kd3 {[%emt 0:00:10]} Rh3+ {[%emt 0:00:31]} 58. Ke2 {[%emt 0:00:22]} Rc3 {[%emt 0:01:33]} 59. Ne5 {[%emt 0:00:41]} Bd6 {[%emt 0:00:56]} 60. Nd3 {[%emt 0:00:09]} Rc7 {[%emt 0:00:44]} 61. Ke3 {[%emt 0:00:43]} f5 {[%emt 0:01:08]} 62. Ra6 {[%emt 0:00:29]} Rd7 {[%emt 0:00:13]} 63. Ne5 {[%emt 0:05:08]} Bxe5 {[%emt 0:01:18]} 64. fxe5 {[%emt 0:00:01]} Kf7 {[%emt 0:01:20]} 65. Kf4 {[%emt 0:00:03]} Rd4+ {[%emt 0:00:15]} 66. Kg5 {[%emt 0:00:09]} Rg4+ {[%emt 0:00:26]} 67. Kh6 {[%emt 0:00:03]} Rh4+ {[%emt 0:00:05]} 68. Kg5 {[%emt 0:00:05]} Rh5+ {[%emt 0:00:19]} 69. Kf4 {[%emt 0:00:00]} g5+ {[%emt 0:00:14]} 70. Kg3 {[%emt 0:00:07]} Rh8 {[%emt 0:00:48]} 71. Rb6 {[%emt 0:00:25]} Re8 {[%emt 0:01:33]} 72. Ra6 {[%emt 0:00:58]} Re7 {[%emt 0:00:09]} 73. Kf3 {[%emt 0:00:42]} Rd7 {[%emt 0:00:15]} 0-1

[Event "72nd RUS-ch Higher League 2019"]
[Site "Yaroslavl"]
[Date "2019.06.30"]
[Round "4.28"]
[White "Vlasenko, Miroslav"]
[Black "Drygalov, Sergey"]
[Result "1-0"]
[ECO "D11"]
[WhiteElo "2417"]
[BlackElo "2492"]
[Annotator "ChessBase"]
[PlyCount "77"]
[EventDate "2019.06.27"]
[EventType "swiss"]
[EventCountry "RUS"]
[SourceTitle "playchess.com"]
[Source "ChessBase"]
[SourceQuality "1"]
[TimeControl "40/5400+30:1800+30"]

1. d4 {[%emt 0:00:00]} d5 {[%emt 0:00:00]} 2. c4 {[%emt 0:00:00]} c6 {[%emt 0:00:00]} 3. Nf3 {[%emt 0:00:00]} Nf6 {[%emt 0:00:00]} 4. Qb3 {[%emt 0:00:00]} dxc4 {[%emt 0:00:00]} 5. Qxc4 {[%emt 0:00:00]} Bg4 {[%emt 0:00:00]} 6. Nbd2 {[%emt 0:00:00]} Nbd7 {[%emt 0:00:41]} 7. g3 {[%emt 0:00:02]} e6 {[%emt 0:00:03]} 8. Bg2 {[%emt 0:00:04]} Be7 {[%emt 0:00:07]} 9. O-O {[%emt 0:00:13]} O-O {[%emt 0:00:04]} 10. Qb3 {[%emt 0:03:55]} Qb6 {[%emt 0:00:04]} 11. Nc4 {[%emt 0:00:21]} Qa6 {[%emt 0:00:03]} 12. Re1 {[%emt 0:04:19]} Rad8 {[%emt 0:01:38]} 13. Bd2 {[%emt 0:07:09]} Nb6 {[%emt 0:04:11]} 14. Nce5 {[%emt 0:02:31]} Bf5 {[%emt 0:14:43]} 15. e3 {[%emt 0:24:55]} Ne4 {[%emt 0:04:07]} 16. Bb4 {[%emt 0:11:38]} Bxb4 {[%emt 0:28:26]} 17. Qxb4 {[%emt 0:00:02]} Nd5 {[%emt 0:01:21]} 18. Qb3 {[%emt 0:01:28]} h6 {[%emt 0:00:14]} 19. Nc4 {[%emt 0:08:33]} c5 {[%emt 0:10:57]} 20. Bf1 {[%emt 0:05:10]} Rb8 {[%emt 0:07:33]} 21. a4 {[%emt 0:03:51]} Nb6 {[%emt 0:07:29]} 22. Nd6 {[%emt 0:05:43]} Qa5 {[%emt 0:00:04]} 23. Nxf5 {[%emt 0:00:10]} exf5 {[%emt 0:00:04]} 24. Qb5 {[%emt 0:00:31]} Qb4 {[%emt 0:03:20]} 25. Qxb4 {[%emt 0:05:41]} cxb4 {[%emt 0:00:01]} 26. a5 {[%emt 0:00:21]} Nd5 {[%emt 0:00:05]} 27. Bc4 {[%emt 0:02:04]} Rfd8 {[%emt 0:02:14]} 28. Rec1 {[%emt 0:00:50]} Rbc8 {[%emt 0:03:27]} 29. Bb3 {[%emt 0:01:32]} Nef6 {[%emt 0:00:48]} 30. Ne5 {[%emt 0:01:05]} Kf8 {[%emt 0:00:35]} 31. Kf1 {[%emt 0:01:22]} Ke7 {[%emt 0:00:05]} 32. a6 {[%emt 0:01:03]} b6 {[%emt 0:06:05]} 33. Nc6+ {[%emt 0:00:26]} Rxc6 {[%emt 0:00:30]} 34. Rxc6 {[%emt 0:00:04]} g6 {[%emt 0:00:17]} 35. Rac1 {[%emt 0:00:49]} h5 {[%emt 0:00:06]} 36. Rc8 {[%emt 0:00:42]} g5 {[%emt 0:00:38]} 37. R1c6 {[%emt 0:01:01]} Rd7 {[%emt 0:01:36]} 38. Ba4 {[%emt 0:01:29]} Ne4 {[%emt 0:00:29]} 39. Rh6 {[%emt 0:00:51]} 1-0

[Event "72nd RUS-ch Higher League 2019"]
[Site "Yaroslavl"]
[Date "2019.06.30"]
[Round "4.29"]
[White "Airapetian, Gor"]
[Black "Bykov, Oleg"]
[Result "1-0"]
[ECO "E15"]
[WhiteElo "2442"]
[BlackElo "2401"]
[Annotator "NA"]
[PlyCount "105"]
[EventDate "2019.06.27"]
[EventType "swiss"]
[EventCountry "RUS"]
[SourceTitle "playchess.com"]
[Source "ChessBase"]
[SourceQuality "1"]
[TimeControl "40/5400+30:1800+30"]

1. d4 {[%emt 0:00:00]} Nf6 {[%emt 0:00:00]} 2. c4 {[%emt 0:00:00]} e6 {[%emt 0:00:05]} 3. Nf3 {[%emt 0:00:00]} b6 {[%emt 0:00:05]} 4. g3 {[%emt 0:00:10]} Bb4+ {[%emt 0:00:06]} 5. Bd2 {[%emt 0:00:12]} Be7 {[%emt 0:00:05]} 6. Bg2 {[%emt 0:00:13]} c6 {[%emt 0:00:19]} 7. O-O {[%emt 0:01:11]} O-O {[%emt 0:00:06]} 8. Bf4 {[%emt 0:01:10]} d5 {[%emt 0:00:10]} 9. Nc3 {[%emt 0:00:49]} Bb7 {[%emt 0:04:30]} 10. Rc1 {[%emt 0:01:12]} dxc4 {[%emt 0:00:37]} 11. Ne5 {[%emt 0:00:41]} Nd5 {[%emt 0:00:07]} 12. Nxc4 {[%emt 0:00:32]} Nxf4 {[%emt 0:00:06]} 13. gxf4 {[%emt 0:00:04]} Nd7 {[%emt 0:00:57]} 14. Ne4 {[%emt 0:08:40]} Qc7 {[%emt 0:04:09]} 15. e3 {[%emt 0:02:04]} Rfd8 {[%emt 0:04:29]} 16. Qh5 {[%emt 0:16:48]} f6 {[%emt 0:24:32]} 17. Rfd1 {[%emt 0:09:21]} Rac8 {[%emt 0:05:13]} 18. Bf3 {[%emt 0:15:03]} Nf8 {[%emt 0:07:57]} 19. f5 {[%emt 0:07:36]} Rd5 {[%emt 0:18:44]} 20. Ng3 {[%emt 0:01:47]} g6 {[%emt 0:00:33]} 21. Qh6 {[%emt 0:15:16]} exf5 {[%emt 0:01:26]} 22. Bxd5+ {[%emt 0:11:50]} cxd5 {[%emt 0:00:06]} 23. Nd2 {[%emt 0:00:03]} Qxc1 {[%emt 0:00:16]} 24. Rxc1 {[%emt 0:00:01]} Rxc1+ {[%emt 0:00:06]} 25. Kg2 {[%emt 0:01:33]} Ne6 {[%emt 0:02:54]} 26. Ndf1 {[%emt 0:01:14]} Ba6 {[%emt 0:02:17]} 27. Nd2 {[%emt 0:04:39]} Bd3 {[%emt 0:05:52]} 28. Qh4 {[%emt 0:00:49]} Kg7 {[%emt 0:01:27]} 29. Nf3 {[%emt 0:00:54]} Bd8 {[%emt 0:12:03]} 30. Ng1 {[%emt 0:00:35]} Bc7 {[%emt 0:03:05]} 31. N3e2 {[%emt 0:00:26]} Rc2 {[%emt 0:01:23]} 32. Nc3 {[%emt 0:00:12]} f4 {[%emt 0:01:04]} 33. e4 {[%emt 0:00:48]} dxe4 {[%emt 0:00:27]} 34. Nd5 {[%emt 0:00:18]} f3+ {[%emt 0:00:31]} 35. Kh1 {[%emt 0:00:05]} Bd8 {[%emt 0:00:49]} 36. Qg3 {[%emt 0:00:55]} Bf1 {[%emt 0:00:21]} 37. h4 {[%emt 0:00:44]} Bg2+ {[%emt 0:00:40]} 38. Kh2 {[%emt 0:00:01]} Rd2 {[%emt 0:00:44]} 39. Qd6 {[%emt 0:00:54]} Rxd4 {[%emt 0:00:21]} 40. Nxf3 {[%emt 0:00:00]} exf3 {[%emt 0:00:00]} 41. Qxe6 {[%emt 0:02:42]} Rxd5 {[%emt 0:25:26]} 42. Qxd5 {[%emt 0:00:10]} Bc7+ {[%emt 0:00:03]} 43. Kg1 {[%emt 0:00:05]} Bf4 {[%emt 0:00:48]} 44. Qb7+ {[%emt 0:01:37]} Kh6 {[%emt 0:00:07]} 45. Qxa7 {[%emt 0:00:27]} g5 {[%emt 0:00:34]} 46. Qxb6 {[%emt 0:02:12]} Kg6 {[%emt 0:00:50]} 47. Qd4 {[%emt 0:09:25]} h5 {[%emt 0:01:16]} 48. Qe4+ {[%emt 0:00:55]} Kg7 {[%emt 0:00:17]} 49. Qf5 {[%emt 0:00:56]} Be5 {[%emt 0:00:26]} 50. hxg5 {[%emt 0:00:56]} h4 {[%emt 0:00:04]} 51. gxf6+ {[%emt 0:02:19]} Bxf6 {[%emt 0:00:01]} 52. a4 {[%emt 0:00:19]} h3 {[%emt 0:00:05]} 53. a5 {[%emt 0:00:10]} 1-0

[Event "72nd RUS-ch Higher League 2019"]
[Site "Yaroslavl"]
[Date "2019.07.01"]
[Round "5.1"]
[White "Predke, Alexandr"]
[Black "Paravyan, David"]
[Result "1-0"]
[ECO "E10"]
[WhiteElo "2632"]
[BlackElo "2605"]
[Annotator "ChessBase"]
[PlyCount "105"]
[EventDate "2019.06.27"]
[EventType "swiss"]
[EventCountry "RUS"]
[SourceTitle "playchess.com"]
[Source "ChessBase"]
[SourceQuality "1"]
[TimeControl "40/5400+30:1800+30"]

1. d4 {[%emt 0:01:15]} Nf6 {[%emt 0:00:00]} 2. c4 {[%emt 0:00:08]} e6 {[%emt 0:00:00]} 3. Nf3 {[%emt 0:00:09]} d5 {[%emt 0:00:00]} 4. Qc2 {[%emt 0:00:19]} Bb4+ {[%emt 0:07:54]} 5. Bd2 {[%emt 0:00:43]} a5 {[%emt 0:00:05]} 6. a3 {[%emt 0:02:14]} Bxd2+ {[%emt 0:23:12]} 7. Nbxd2 {[%emt 0:00:11]} O-O {[%emt 0:00:03]} 8. e4 {[%emt 0:04:11]} dxe4 {[%emt 0:18:07]} 9. Nxe4 {[%emt 0:00:09]} Nxe4 {[%emt 0:00:01]} 10. Qxe4 {[%emt 0:00:07]} c5 {[%emt 0:00:12]} 11. O-O-O {[%emt 0:03:18]} cxd4 {[%emt 0:00:04]} 12. Nxd4 {[%emt 0:07:35]} Qf6 {[%emt 0:07:34]} 13. Bd3 {[%emt 0:07:49]} g6 {[%emt 0:00:03]} 14. Rhe1 {[%emt 0:11:38]} Bd7 {[%emt 0:01:32]} 15. Bc2 {[%emt 0:14:40]} Na6 {[%emt 0:06:43]} 16. Qe5 {[%emt 0:10:06]} Qxe5 {[%emt 0:02:23]} 17. Rxe5 {[%emt 0:00:09]} Rfc8 {[%emt 0:08:52]} 18. Rxa5 {[%emt 0:10:24]} Rxc4 {[%emt 0:01:26]} 19. b3 {[%emt 0:00:22]} Rcc8 {[%emt 0:06:26]} 20. Kb2 {[%emt 0:04:12]} b6 {[%emt 0:00:16]} 21. Re5 {[%emt 0:00:32]} Nc5 {[%emt 0:00:30]} 22. f4 {[%emt 0:01:57]} Rd8 {[%emt 0:02:25]} 23. Re2 {[%emt 0:05:54]} h5 {[%emt 0:03:18]} 24. Red2 {[%emt 0:00:31]} Be8 {[%emt 0:00:28]} 25. Ne2 {[%emt 0:01:20]} Rdc8 {[%emt 0:00:59]} 26. Nc3 {[%emt 0:00:31]} Kf8 {[%emt 0:07:20]} 27. Ne4 {[%emt 0:06:00]} Nxe4 {[%emt 0:00:48]} 28. Bxe4 {[%emt 0:00:04]} Rab8 {[%emt 0:00:52]} 29. a4 {[%emt 0:01:13]} Ke7 {[%emt 0:00:05]} 30. Rd4 {[%emt 0:01:10]} Rd8 {[%emt 0:02:21]} 31. Rxd8 {[%emt 0:03:19]} Rxd8 {[%emt 0:00:03]} 32. Rxd8 {[%emt 0:00:02]} Kxd8 {[%emt 0:00:03]} 33. h4 {[%emt 0:00:05]} Kc7 {[%emt 0:00:05]} 34. Kc3 {[%emt 0:00:09]} Kd6 {[%emt 0:00:55]} 35. Kd4 {[%emt 0:00:29]} f6 {[%emt 0:01:04]} 36. g3 {[%emt 0:01:15]} e5+ {[%emt 0:00:03]} 37. fxe5+ {[%emt 0:00:04]} fxe5+ {[%emt 0:00:02]} 38. Kc4 {[%emt 0:03:49]} Bf7+ {[%emt 0:00:39]} 39. Kc3 {[%emt 0:00:25]} Be8 {[%emt 0:00:47]} 40. Kc4 {[%emt 0:00:00]} Bf7+ {[%emt 0:00:00]} 41. Kb4 {[%emt 0:06:59]} Be8 {[%emt 0:05:08]} 42. Kc3 {[%emt 0:00:18]} Ke6 {[%emt 0:09:58]} 43. Bc2 {[%emt 0:01:01]} Kf6 {[%emt 0:15:01]} 44. b4 {[%emt 0:00:49]} g5 {[%emt 0:00:03]} 45. a5 {[%emt 0:00:51]} bxa5 {[%emt 0:00:03]} 46. bxa5 {[%emt 0:00:03]} Bb5 {[%emt 0:02:06]} 47. Bd3 {[%emt 0:00:33]} Bc6 {[%emt 0:00:04]} 48. a6 {[%emt 0:00:41]} e4 {[%emt 0:01:38]} 49. Be2 {[%emt 0:00:13]} gxh4 {[%emt 0:00:10]} 50. gxh4 {[%emt 0:00:04]} Ke5 {[%emt 0:00:37]} 51. Bxh5 {[%emt 0:00:18]} Kf4 {[%emt 0:01:03]} 52. Bd1 {[%emt 0:00:16]} e3 {[%emt 0:00:21]} 53. h5 {[%emt 0:00:48]} 1-0

[Event "72nd RUS-ch Higher League 2019"]
[Site "Yaroslavl"]
[Date "2019.07.01"]
[Round "5.2"]
[White "Esipenko, Andrey"]
[Black "Chigaev, Maksim"]
[Result "1/2-1/2"]
[ECO "C54"]
[WhiteElo "2611"]
[BlackElo "2640"]
[Annotator "ChessBase"]
[PlyCount "59"]
[EventDate "2019.06.27"]
[EventType "swiss"]
[EventCountry "RUS"]
[SourceTitle "playchess.com"]
[Source "ChessBase"]
[SourceQuality "1"]
[TimeControl "40/5400+30:1800+30"]

1. e4 {[%emt 0:00:00]} e5 {[%emt 0:00:00]} 2. Nf3 {[%emt 0:00:00]} Nc6 {[%emt 0:00:00]} 3. Bc4 {[%emt 0:00:12]} Bc5 {[%emt 0:00:12]} 4. c3 {[%emt 0:00:12]} Nf6 {[%emt 0:00:05]} 5. d3 {[%emt 0:00:06]} d6 {[%emt 0:00:08]} 6. O-O {[%emt 0:00:23]} h6 {[%emt 0:01:00]} 7. Re1 {[%emt 0:00:40]} O-O {[%emt 0:00:29]} 8. h3 {[%emt 0:00:11]} a5 {[%emt 0:00:07]} 9. Nbd2 {[%emt 0:00:10]} a4 {[%emt 0:00:57]} 10. Bb5 {[%emt 0:00:22]} Bd7 {[%emt 0:16:54]} 11. Nf1 {[%emt 0:00:11]} Ne7 {[%emt 0:06:47]} 12. Bxd7 {[%emt 0:00:06]} Qxd7 {[%emt 0:00:09]} 13. Ng3 {[%emt 0:02:53]} Ng6 {[%emt 0:05:29]} 14. d4 {[%emt 0:00:48]} Bb6 {[%emt 0:03:19]} 15. Be3 {[%emt 0:05:08]} Rfe8 {[%emt 0:04:26]} 16. Qc2 {[%emt 0:12:47]} Qc6 {[%emt 0:04:05]} 17. Rad1 {[%emt 0:10:34]} exd4 {[%emt 0:08:47]} 18. Nxd4 {[%emt 0:04:42]} Qc4 {[%emt 0:06:00]} 19. b3 {[%emt 0:12:40]} axb3 {[%emt 0:00:07]} 20. axb3 {[%emt 0:00:04]} Qa6 {[%emt 0:00:07]} 21. c4 {[%emt 0:24:56]} Qa2 {[%emt 0:03:44]} 22. Qxa2 {[%emt 0:01:10]} Rxa2 {[%emt 0:00:09]} 23. Nb5 {[%emt 0:00:08]} Bxe3 {[%emt 0:00:17]} 24. Rxe3 {[%emt 0:00:07]} Rc8 {[%emt 0:01:05]} 25. Nf5 {[%emt 0:02:16]} Kf8 {[%emt 0:01:43]} 26. Nc3 {[%emt 0:01:01]} Ra3 {[%emt 0:07:25]} 27. Nb5 {[%emt 0:01:11]} Ra2 {[%emt 0:00:05]} 28. Nc3 {[%emt 0:00:40]} Ra3 {[%emt 0:00:05]} 29. Nb5 {[%emt 0:00:31]} Ra2 {[%emt 0:00:12]} 30. Nc3 {[%emt 0:00:11]} 1/2-1/2